fUSD/lending_fUSD_20240609
["ID","MTS","AMOUNT","RATE_DAILY","PERIOD"]
[328875182,1717939845298,-257.9877105,0.0002,2]
[328875183,1717939845308,-5302.97258211,0.0002,2]
[328875184,1717939845319,-1993.06809228,0.0002,2]
[328875185,1717939845329,-5900.0,0.0002,7]
[328875186,1717939845339,-345.0,0.0002,2]
[328875187,1717939845349,-190.0,0.0002,2]
[328875188,1717939845360,-1010.86316582,0.0002,2]
[328875189,1717939845370,-1511.24231322,0.0002,2]
[328875190,1717939845379,-155.42881719,0.0002,2]
[328875191,1717939845389,-292.85475627,0.0002,2]
[328875192,1717939845399,-8000.0,0.0002,7]
[328875193,1717939845550,-150.0,0.0002,2]
[328875194,1717939845560,-150.0,0.0002,2]
[328875195,1717939845570,-226.67450997,0.000201,2]
[328875196,1717939845580,-9968.0,0.000203,3]
[328875197,1717939845590,-21586.759,0.0002036,2]
[328875198,1717939845600,-1573.0,0.0002036,2]
[328875199,1717939845610,-1194.0,0.0002036,2]
[328875200,1717939845620,-1065.0,0.0002036,2]
[328875201,1717939845630,-150.0,0.000205,2]
[328875202,1717939845641,-150.0,0.000205,2]
[328875203,1717939845652,-2838.0,0.000206,2]
[328875204,1717939845662,-637.0,0.000206,2]
[328875205,1717939845672,-11737.0,0.000206,5]
[328875206,1717939845681,-977.74190418,0.000207,2]
[328875207,1717939845692,-10930.21742229,0.00020707,2]
[328875208,1717939845702,-1000.0,0.00020775,2]
[328875209,1717939845712,-207.71,0.00020959,2]
[328875210,1717939845721,-300.0,0.00020959,2]
[328875211,1717939845731,-150.73,0.00020959,2]
[328875212,1717939845740,-704.22,0.00020959,2]
[328875213,1717939845750,-1050.88,0.00020959,2]
[328875214,1717939845762,-300.75,0.00020959,2]
[328875215,1717939845772,-422.59,0.00020959,2]
[328875216,1717939845783,-319.44,0.00020959,2]
[328875217,1717939845795,-422.59,0.00020959,2]
[328875218,1717939845804,-150.0,0.00020959,2]
[328875219,1717939845814,-422.59,0.00020959,2]
[328875220,1717939845824,-150.0,0.00020959,2]
[328875221,1717939845835,-201.96,0.00020959,2]
[328875222,1717939845845,-150.0,0.00020959,2]
[328875223,1717939845856,-150.0,0.00020959,2]
[328875224,1717939845867,-364.42,0.00020985,2]
[328875225,1717939845877,-150.0,0.00021,2]
[328875226,1717939845887,-150.0,0.00021,2]
[328875227,1717939845897,-2945.02569,0.0002101,2]
[328875228,1717939845907,-185.02675065,0.00021473,2]
[328875229,1717939845918,-150.0,0.000215,3]
[328875230,1717939845928,-150.0,0.000215,3]
[328875231,1717939845937,-526.32,0.00021781,2]
[328875232,1717939845947,-150.0,0.00021781,2]
[328875233,1717939845957,-300.47,0.00021781,2]
[328875234,1717939845967,-328.2,0.00021781,2]
[328875235,1717939845977,-422.59,0.00021781,2]
[328875236,1717939845987,-150.0,0.00021781,2]
[328875237,1717939845998,-150.0,0.00021781,2]
[328875238,1717939846009,-526.32,0.00021781,2]
[328875239,1717939846020,-422.59,0.00021781,2]
[328875240,1717939846030,-150.0,0.00021781,2]
[328875241,1717939846040,-150.0,0.00021781,2]
[328875242,1717939846051,-150.0,0.00021781,2]
[328875243,1717939846061,-150.0,0.00021781,2]
[328875244,1717939846072,-526.32,0.00021781,2]
[328875245,1717939846082,-422.59,0.00021781,2]
[328875246,1717939846092,-150.0,0.00021781,2]
[328875247,1717939846103,-150.0,0.00021781,2]
[328875248,1717939846113,-150.0,0.00021781,2]
[328875249,1717939846123,-422.59,0.00021781,2]
[328875250,1717939846134,-479.67,0.00021781,2]
[328875251,1717939846144,-150.0,0.00021781,2]
[328875252,1717939846154,-150.0,0.00021781,2]
[328875253,1717939846164,-422.59,0.00021781,2]
[328875254,1717939846174,-150.0,0.00021781,2]
[328875255,1717939846183,-150.0,0.00021781,2]
[328875256,1717939846193,-840.93,0.00021781,2]
[328875257,1717939846202,-150.0,0.00021781,2]
[328875258,1717939846212,-150.0,0.00021781,2]
[328875259,1717939846221,-10930.21742229,0.00021856,2]
[328875260,1717939846231,-500.0,0.000219,2]
[328875261,1717939846241,-915.325398,0.000219,2]
[328875262,1717939846251,-915.325398,0.000219,2]
[328875263,1717939846261,-151.0,0.000219,2]
[328875264,1717939846271,-249.969346,0.000219,2]
[328875265,1717939846281,-151.0,0.000219,2]
[328875266,1717939846291,-249.969346,0.000219,2]
[328875267,1717939846301,-151.0,0.000219,2]
[328875268,1717939846311,-151.0,0.000219,2]
[328875269,1717939846320,-151.0,0.00021918,2]
[328875270,1717939846330,-250.0,0.00021918,2]
[328875271,1717939846340,-151.0,0.00021918,2]
[328875272,1717939846351,-151.0,0.00021918,2]
[328875273,1717939846363,-682.93,0.00021918,2]
[328875274,1717939846373,-153.5,0.0002192,2]
[328875275,1717939846383,-789.37013607,0.00022,2]
[328875276,1717939846393,-150.0,0.00022,3]
[328875277,1717939846403,-150.0,0.00022,3]
[328875278,1717939846414,-324.45305256,0.00022395,2]
[328875279,1717939846424,-150.0,0.000225,3]
[328875280,1717939846435,-150.0,0.000225,3]
[328875281,1717939846446,-5306.38451941,0.00023,2]
[328875282,1717939846456,-977.74190418,0.00023,2]
[328875283,1717939846467,-150.0,0.00023,3]
[328875284,1717939846476,-150.0,0.00023,3]
[328875285,1717939846486,-10930.21742229,0.00023005,2]
[328875286,1717939846498,-364.42,0.00023249,2]
[328875287,1717939846508,-380.71,0.00023288,2]
[328875288,1717939846518,-379.99,0.00023288,2]
[328875289,1717939846528,-501.2,0.00023288,2]
[328875290,1717939846539,-1246.082,0.0002336,2]
[328875291,1717939846549,-1194.0,0.0002336,2]
[328875292,1717939846560,-1065.0,0.0002336,2]
[328875293,1717939846571,-150.0,0.00023425,2]
[328875294,1717939846581,-150.0,0.00023425,2]
[328875295,1717939846591,-150.0,0.00023425,2]
[328875296,1717939846601,-150.0,0.00023425,2]
[328875297,1717939846612,-150.0,0.00023425,2]
[328875299,1717939846622,-335.98,0.00023425,2]
[328875300,1717939846633,-13846.55047256,0.000235,2]
[328875301,1717939846643,-151.0,0.000235,7]
[328875302,1717939846655,-151.0,0.000235,7]
[328875303,1717939846665,-156.506712,0.000235,7]
[328875304,1717939846675,-151.0,0.000235,7]
[328875305,1717939846685,-4564.619993,0.000235,7]
[328875306,1717939846694,-151.0,0.000235,7]
[328875307,1717939846704,-4564.619993,0.000235,7]
[328875308,1717939846714,-151.0,0.000235,7]
[328875309,1717939846724,-151.0,0.000235,7]
[328875310,1717939846734,-151.0,0.000235,7]
[328875311,1717939846746,-151.0,0.000235,7]
[328875312,1717939846756,-151.0,0.000235,7]
[328875313,1717939846767,-239.357084,0.000235,7]
[328875314,1717939846778,-151.0,0.000235,7]
[328875315,1717939846793,-151.0,0.000235,7]
[328875316,1717939846803,-380.363063,0.000235,7]
[328875317,1717939846814,-151.0,0.000235,7]
[328875318,1717939846825,-239.357084,0.000235,7]
[328875319,1717939846837,-380.363063,0.000235,7]
[328875320,1717939846847,-151.0,0.000235,7]
[328875321,1717939846858,-151.0,0.000235,7]
[328875322,1717939846872,-151.0,0.000235,7]
[328875323,1717939846883,-155.70392,0.000235,7]
[328875324,1717939846894,-151.0,0.000235,7]
[328875325,1717939846905,-151.0,0.000235,7]
[328875326,1717939846915,-157.915682,0.000235,7]
[328875327,1717939846925,-151.0,0.000235,7]
[328875328,1717939846936,-151.0,0.000235,7]
[328875329,1717939846946,-231.282564,0.000235,7]
[328875330,1717939846956,-151.0,0.000235,7]
[328875331,1717939846966,-151.0,0.000235,7]
[328875332,1717939846977,-610.541848,0.000235,7]
[328875333,1717939846987,-610.541848,0.000235,7]
[328875334,1717939846997,-151.0,0.000235,7]
[328875335,1717939847009,-151.0,0.000235,7]
[328875336,1717939847020,-151.0,0.000235,7]
[328875337,1717939847031,-150.0,0.000235,3]
[328875338,1717939847042,-150.0,0.000235,3]
[328875339,1717939847052,-151.0,0.000235,7]
[328875340,1717939847062,-151.0,0.000235,7]
[328875341,1717939847072,-151.0,0.000235,7]
[328875342,1717939847082,-151.0,0.000235,7]
[328875343,1717939847093,-2945.02569,0.0002351,2]
[328875344,1717939847103,-185.02675065,0.0002358,2]
[328875345,1717939847113,-73366.19723794,0.000236,2]
[328875346,1717939847123,-151.0,0.000236,7]
[328875347,1717939847133,-352.384908,0.000236,7]
[328875348,1717939847143,-352.384908,0.000236,7]
[328875349,1717939847154,-151.0,0.000236,7]
[328875350,1717939847164,-498.376452,0.000236,7]
[328875351,1717939847175,-498.376452,0.000236,7]
[328875352,1717939847185,-209.536398,0.000236,7]
[328875353,1717939847197,-209.536398,0.000236,7]
[328875354,1717939847207,-151.0,0.000236,7]
[328875355,1717939847217,-156.365839,0.000236,7]
[328875356,1717939847227,-151.0,0.00023628,5]
[328875357,1717939847237,-151.0,0.00023984,7]
[328875358,1717939847247,-151.0,0.00023984,7]
[328875359,1717939847257,-151.0,0.00023984,7]
[328875360,1717939847268,-151.0,0.00023984,7]
[328875361,1717939847278,-248.138749,0.00023984,7]
[328875362,1717939847288,-151.0,0.00023984,7]
[328875363,1717939847298,-151.0,0.00023984,7]
[328875364,1717939847308,-151.0,0.00023984,7]
[328875365,1717939847318,-151.099883,0.00023984,7]
[328875366,1717939847328,-104125.2444277,0.00024,3]
[328875367,1717939847338,-71582.23947502,0.00024,15]
[328875368,1717939847348,-151.0,0.00024,7]
[328875369,1717939847358,-151.0,0.00024,7]
[328875370,1717939847368,-151.0,0.00024,7]
[328875371,1717939847378,-151.0,0.00024,7]
[328875372,1717939847388,-151.0,0.00024,7]
[328875373,1717939847398,-151.0,0.00024,7]
[328875374,1717939847408,-151.0,0.00024,7]
[328875375,1717939847417,-151.0,0.00024,7]
[328875376,1717939847427,-151.0,0.00024,7]
[328875377,1717939847437,-151.0,0.00024,7]
[328875378,1717939847448,-155.102883,0.00024,7]
[328875379,1717939847457,-154.756766,0.00024,7]
[328875380,1717939847468,-151.0,0.00024,7]
[328875381,1717939847478,-185.33269,0.00024,7]
[328875382,1717939847488,-185.33269,0.00024,7]
[328875383,1717939847498,-151.0,0.00024,7]
[328875384,1717939847508,-152.649986,0.00024,7]
[328875385,1717939847518,-266.240571,0.00024,7]
[328875386,1717939847528,-151.0,0.00024,7]
[328875387,1717939847538,-266.240571,0.00024,7]
[328875388,1717939847548,-151.0,0.00024,7]
[328875389,1717939847559,-151.0,0.00024,7]
[328875390,1717939847569,-151.0,0.00024,7]
[328875391,1717939847580,-151.0,0.00024,7]
[328875392,1717939847590,-151.0,0.00024,7]
[328875393,1717939847600,-151.0,0.00024,7]
[328875394,1717939847611,-151.0,0.00024,7]
[328875395,1717939847622,-827.54376,0.00024,7]
[328875396,1717939847632,-827.54376,0.00024,7]
[328875397,1717939847642,-151.0,0.00024,7]
[328875398,1717939847653,-151.0,0.00024,7]
[328875399,1717939847663,-156.349424,0.00024,7]
[328875400,1717939847672,-156.693342,0.00024,7]
[328875401,1717939847682,-156.693342,0.00024,7]
[328875402,1717939847692,-151.0,0.00024,7]
[328875403,1717939847702,-151.0,0.00024,7]
[328875404,1717939847711,-151.0,0.00024,7]
[328875405,1717939847721,-229.636508,0.00024,7]
[328875406,1717939847732,-229.636508,0.00024,7]
[328875407,1717939847742,-151.0,0.00024,7]
[328875408,1717939847752,-151.0,0.00024,7]
[328875409,1717939847763,-151.0,0.00024,7]
[328875410,1717939847773,-609.957394,0.00024,7]
[328875411,1717939847783,-154.415959,0.00024,7]
[328875412,1717939847796,-609.957394,0.00024,7]
[328875413,1717939847807,-151.0,0.00024,7]
[328875414,1717939847818,-151.0,0.00024,7]
[328875415,1717939847828,-503.308994,0.00024,7]
[328875416,1717939847839,-181.392361,0.00024,7]
[328875417,1717939847850,-151.0,0.00024,7]
[328875418,1717939847861,-165.926975,0.00024,7]
[328875419,1717939847873,-503.308994,0.00024,7]
[328875420,1717939847882,-181.392361,0.00024,7]
[328875421,1717939847893,-151.0,0.00024,7]
[328875422,1717939847903,-165.926975,0.00024,7]
[328875423,1717939847913,-151.0,0.00024,7]
[328875424,1717939847923,-187.81581,0.00024,7]
[328875425,1717939847933,-199.815213,0.00024,7]
[328875426,1717939847943,-151.0,0.00024,7]
[328875427,1717939847953,-199.815213,0.00024,7]
[328875428,1717939847964,-151.0,0.00024,7]
[328875429,1717939847974,-206.515292,0.00024,7]
[328875430,1717939847983,-206.515292,0.00024,7]
[328875431,1717939847993,-193.380331,0.00024,7]
[328875432,1717939848004,-193.380331,0.00024,7]
[328875433,1717939848013,-379.967,0.00024,7]
[328875434,1717939848023,-210.0,0.00024,7]
[328875435,1717939848033,-379.967,0.00024,7]
[328875436,1717939848043,-151.0,0.00024,7]
[328875437,1717939848054,-151.0,0.00024,7]
[328875438,1717939848064,-210.0,0.00024,7]
[328875439,1717939848074,-151.0,0.00024,7]
[328875440,1717939848084,-600.499051,0.00024,7]
[328875441,1717939848094,-151.0,0.00024,7]
[328875442,1717939848104,-151.0,0.00024,7]
[328875443,1717939848115,-151.0,0.00024,7]
[328875444,1717939848124,-151.0,0.00024,7]
[328875445,1717939848134,-1053.804557,0.00024,7]
[328875446,1717939848144,-156.110474,0.00024,7]
[328875447,1717939848154,-285.17277,0.00024,7]
[328875448,1717939848165,-156.110474,0.00024,7]
[328875449,1717939848175,-352.384908,0.00024,7]
[328875450,1717939848185,-352.384908,0.00024,7]
[328875451,1717939848195,-151.0,0.00024,7]
[328875452,1717939848205,-151.0,0.00024,7]
[328875454,1717939848215,-498.376452,0.00024,7]
[328875455,1717939848224,-498.376452,0.00024,7]
[328875456,1717939848234,-209.536398,0.00024,7]
[328875457,1717939848244,-209.536398,0.00024,7]
[328875458,1717939848253,-151.0,0.00024,7]
[328875459,1717939848263,-151.0,0.00024,7]
[328875460,1717939848274,-151.0,0.00024,7]
[328875461,1717939848284,-151.0,0.00024,7]
[328875462,1717939848293,-4564.619993,0.00024,7]
[328875463,1717939848303,-299.317616,0.00024,7]
[328875464,1717939848313,-4564.619993,0.00024,7]
[328875466,1717939848323,-151.0,0.00024,7]
[328875468,1717939848332,-151.0,0.00024,7]
[328875469,1717939848342,-151.0,0.00024,7]
[328875470,1717939848352,-151.0,0.00024,7]
[328875471,1717939848362,-151.0,0.00024,7]
[328875472,1717939848372,-239.357084,0.00024,7]
[328875473,1717939848382,-151.0,0.00024,7]
[328875474,1717939848392,-151.0,0.00024,7]
[328875475,1717939848401,-380.363063,0.00024,7]
[328875476,1717939848411,-151.0,0.00024,7]
[328875477,1717939848420,-239.357084,0.00024,7]
[328875478,1717939848430,-380.363063,0.00024,7]
[328875479,1717939848440,-151.0,0.00024,7]
[328875480,1717939848449,-151.0,0.00024,7]
[328875481,1717939848459,-151.0,0.00024,7]
[328875482,1717939848469,-151.0,0.00024,7]
[328875483,1717939848479,-151.0,0.00024,7]
[328875484,1717939848489,-151.0,0.00024,7]
[328875485,1717939848498,-151.0,0.00024,7]
[328875486,1717939848508,-151.0,0.00024,7]
[328875487,1717939848519,-151.0,0.00024,7]
[328875488,1717939848529,-610.541848,0.00024,7]
[328875490,1717939848539,-610.541848,0.00024,7]
[328875491,1717939848549,-151.0,0.00024,7]
[328875492,1717939848559,-151.0,0.00024,7]
[328875493,1717939848569,-151.0,0.00024,7]
[328875494,1717939848580,-915.325398,0.00024,7]
[328875495,1717939848590,-150.0,0.00024,4]
[328875496,1717939848601,-915.325398,0.00024,7]
[328875497,1717939848612,-150.0,0.00024,4]
[328875498,1717939848622,-151.0,0.00024,7]
[328875499,1717939848632,-249.969346,0.00024,7]
[328875500,1717939848641,-151.0,0.00024,7]
[328875501,1717939848650,-249.969346,0.00024,7]
[328875502,1717939848660,-151.0,0.00024,7]
[328875503,1717939848669,-151.0,0.00024,7]
[328875504,1717939848679,-151.0,0.00024,7]
[328875505,1717939848688,-151.0,0.00024,7]
[328875506,1717939848697,-151.0,0.00024,7]
[328875507,1717939848707,-151.0,0.00024,7]
[328875508,1717939848716,-10930.21742229,0.00024155,2]
[328875509,1717939848726,-3357.87,0.00024174,2]
[328875510,1717939848735,-25699.69,0.00024174,2]
[328875511,1717939848746,-6313.04,0.00024174,2]
[328875512,1717939848756,-180.0,0.0002423,2]
[328875513,1717939848765,-219.41,0.00024384,2]
[328875514,1717939848775,-166.1,0.00024384,2]
[328875515,1717939848786,-156.85,0.00024384,2]
[328875516,1717939848799,-227.98,0.00024384,2]
[328875517,1717939848809,-150.0,0.000245,4]
[328875518,1717939848818,-150.0,0.000245,4]
[328875519,1717939848828,-151.0,0.00024538,5]
[328875520,1717939848959,-200.0,0.00024658,7]
[328875521,1717939848970,-151.0,0.00024798,7]
[328875522,1717939848980,-151.0,0.00024798,7]
[328875523,1717939848990,-263.100876,0.00024798,7]
[328875524,1717939849000,-151.0,0.00024798,7]
[328875525,1717939849010,-151.0,0.00024798,7]
[328875526,1717939849020,-151.0,0.00024798,7]
[328875527,1717939849030,-247.469562,0.00024798,7]
[328875528,1717939849040,-151.0,0.00024798,7]
[328875529,1717939849050,-151.0,0.00024798,7]
[328875530,1717939849060,-3993.09790214,0.00024798,2]
[328875531,1717939849070,-3993.09790205,0.00024798,2]
[328875532,1717939849080,-3993.09790205,0.00024798,2]
[328875533,1717939849090,-3993.09790205,0.00024798,2]
[328875534,1717939849100,-3993.09790205,0.00024798,2]
[328875535,1717939849110,-3993.09790205,0.00024798,2]
[328875536,1717939849120,-3993.09790205,0.00024798,2]
[328875537,1717939849130,-3174.99047735,0.00024799,2]
[328875538,1717939849140,-3174.99047732,0.00024799,2]
[328875539,1717939849149,-3174.99047732,0.00024799,2]
[328875540,1717939849159,-3174.99047732,0.00024799,2]
[328875541,1717939849169,-3174.99047732,0.00024799,2]
[328875542,1717939849178,-3174.99047732,0.00024799,2]
[328875543,1717939849188,-3174.99047732,0.00024799,2]
[328875544,1717939849197,-6786.64428082,0.000249,2]
[328875545,1717939849207,-150.0,0.00024999,10]
[328875546,1717939849217,-33329.36476062,0.00025,2]
[328875547,1717939849227,-841.70173379,0.00025,2]
[328875548,1717939849236,-1276.67123089,0.00025,2]
[328875549,1717939849246,-225.89170686,0.00025,2]
[328875550,1717939849255,-155.19443021,0.00025,2]
[328875551,1717939849265,-581.07921206,0.00025,14]
[328875552,1717939849276,-23977.58431279,0.00025,2]
[328875553,1717939849285,-160.0,0.00025,2]
[328875554,1717939849295,-457.14062155,0.00025,2]
[328875555,1717939849305,-214.43831631,0.00025,2]
[328875556,1717939849315,-184.31353049,0.00025,2]
[328875557,1717939849324,-157.58100289,0.00025,2]
[328875558,1717939849334,-1203.42195458,0.00025,2]
[328875559,1717939849344,-1250.0,0.00025,2]
[328875560,1717939849354,-156.84533381,0.00025,2]
[328875561,1717939849365,-156.978316,0.00025,7]
[328875562,1717939849375,-151.0,0.00025,7]
[328875563,1717939849384,-151.0,0.00025,7]
[328875564,1717939849393,-154.473341,0.00025,7]
[328875565,1717939849403,-151.0,0.00025,7]
[328875566,1717939849413,-151.0,0.00025,7]
[328875567,1717939849423,-154.881894,0.00025,7]
[328875568,1717939849433,-151.0,0.00025,7]
[328875569,1717939849443,-151.0,0.00025,7]
[328875570,1717939849453,-185.33269,0.00025,7]
[328875571,1717939849464,-185.33269,0.00025,7]
[328875572,1717939849475,-151.0,0.00025,7]
[328875573,1717939849486,-151.0,0.00025,7]
[328875574,1717939849497,-151.0,0.00025,7]
[328875575,1717939849506,-151.0,0.00025,7]
[328875576,1717939849517,-151.0,0.00025,7]
[328875577,1717939849527,-151.0,0.00025,7]
[328875578,1717939849537,-827.54376,0.00025,7]
[328875579,1717939849548,-827.54376,0.00025,7]
[328875580,1717939849558,-151.0,0.00025,7]
[328875581,1717939849569,-151.0,0.00025,7]
[328875582,1717939849579,-156.693342,0.00025,7]
[328875583,1717939849588,-156.693342,0.00025,7]
[328875584,1717939849599,-151.0,0.00025,7]
[328875585,1717939849609,-240.914146,0.00025,7]
[328875586,1717939849619,-151.0,0.00025,7]
[328875587,1717939849630,-229.636508,0.00025,7]
[328875588,1717939849639,-229.636508,0.00025,7]
[328875589,1717939849650,-151.0,0.00025,7]
[328875590,1717939849660,-151.0,0.00025,7]
[328875591,1717939849670,-151.0,0.00025,7]
[328875592,1717939849680,-609.957394,0.00025,7]
[328875593,1717939849691,-609.957394,0.00025,7]
[328875594,1717939849701,-151.0,0.00025,7]
[328875595,1717939849710,-151.0,0.00025,7]
[328875596,1717939849720,-503.308994,0.00025,7]
[328875597,1717939849730,-181.392361,0.00025,7]
[328875598,1717939849740,-151.0,0.00025,7]
[328875599,1717939849750,-165.926975,0.00025,7]
[328875600,1717939849761,-503.308994,0.00025,7]
[328875601,1717939849771,-181.392361,0.00025,7]
[328875602,1717939849781,-151.0,0.00025,7]
[328875603,1717939849792,-165.926975,0.00025,7]
[328875604,1717939849805,-151.0,0.00025,7]
[328875605,1717939849816,-199.815213,0.00025,7]
[328875606,1717939849825,-151.0,0.00025,7]
[328875607,1717939849835,-199.815213,0.00025,7]
[328875608,1717939849847,-154.728099,0.00025,7]
[328875609,1717939849857,-206.515292,0.00025,7]
[328875610,1717939849868,-206.515292,0.00025,7]
[328875611,1717939849880,-193.380331,0.00025,7]
[328875612,1717939849891,-193.380331,0.00025,7]
[328875613,1717939849901,-379.967,0.00025,7]
[328875614,1717939849911,-210.0,0.00025,7]
[328875615,1717939849920,-379.967,0.00025,7]
[328875616,1717939849930,-151.0,0.00025,7]
[328875617,1717939849940,-151.0,0.00025,7]
[328875618,1717939849950,-210.0,0.00025,7]
[328875619,1717939849961,-151.0,0.00025,7]
[328875620,1717939849972,-600.499051,0.00025,7]
[328875621,1717939849982,-151.0,0.00025,7]
[328875622,1717939849992,-151.0,0.00025,7]
[328875623,1717939850004,-151.0,0.00025,7]
[328875624,1717939850014,-151.0,0.00025,7]
[328875625,1717939850024,-1053.804557,0.00025,7]
[328875626,1717939850033,-150.0,0.00025,2]
[328875627,1717939850043,-1053.804557,0.00025,7]
[328875628,1717939850054,-156.110474,0.00025,7]
[328875629,1717939850064,-156.110474,0.00025,7]
[328875630,1717939850074,-352.384908,0.00025,7]
[328875631,1717939850085,-352.384908,0.00025,7]
[328875632,1717939850095,-151.0,0.00025,7]
[328875633,1717939850106,-151.0,0.00025,7]
[328875634,1717939850117,-498.376452,0.00025,7]
[328875635,1717939850127,-498.376452,0.00025,7]
[328875636,1717939850137,-209.536398,0.00025,7]
[328875637,1717939850146,-209.536398,0.00025,7]
[328875638,1717939850156,-151.0,0.00025,7]
[328875639,1717939850166,-151.0,0.00025,7]
[328875640,1717939850176,-151.0,0.00025,7]
[328875641,1717939850186,-151.0,0.00025,7]
[328875642,1717939850195,-4564.619993,0.00025,7]
[328875643,1717939850205,-4564.619993,0.00025,7]
[328875644,1717939850215,-158.146799,0.00025,7]
[328875645,1717939850224,-151.0,0.00025,7]
[328875646,1717939850234,-151.0,0.00025,7]
[328875647,1717939850243,-260.863939,0.00025,7]
[328875648,1717939850254,-151.0,0.00025,7]
[328875649,1717939850264,-239.357084,0.00025,7]
[328875650,1717939850274,-151.0,0.00025,7]
[328875651,1717939850284,-151.0,0.00025,7]
[328875652,1717939850294,-380.363063,0.00025,7]
[328875653,1717939850304,-151.0,0.00025,7]
[328875654,1717939850313,-239.357084,0.00025,7]
[328875655,1717939850323,-380.363063,0.00025,7]
[328875656,1717939850334,-151.0,0.00025,7]
[328875657,1717939850344,-151.0,0.00025,7]
[328875658,1717939850354,-151.0,0.00025,7]
[328875659,1717939850363,-151.0,0.00025,7]
[328875660,1717939850373,-151.0,0.00025,7]
[328875661,1717939850384,-151.0,0.00025,7]
[328875662,1717939850394,-151.0,0.00025,7]
[328875663,1717939850405,-151.0,0.00025,7]
[328875664,1717939850415,-151.0,0.00025,7]
[328875665,1717939850425,-610.541848,0.00025,7]
[328875666,1717939850436,-610.541848,0.00025,7]
[328875667,1717939850446,-151.0,0.00025,7]
[328875668,1717939850456,-151.0,0.00025,7]
[328875669,1717939850467,-151.0,0.00025,7]
[328875670,1717939850478,-915.325398,0.00025,7]
[328875671,1717939850488,-915.325398,0.00025,7]
[328875672,1717939850498,-153.903619,0.00025,7]
[328875673,1717939850508,-249.969346,0.00025,7]
[328875674,1717939850519,-151.0,0.00025,7]
[328875675,1717939850529,-249.969346,0.00025,7]
[328875676,1717939850540,-234.307734,0.00025,7]
[328875677,1717939850550,-151.0,0.00025,7]
[328875678,1717939850560,-151.0,0.00025,7]
[328875679,1717939850571,-151.0,0.00025,7]
[328875680,1717939850580,-151.0,0.00025,7]
[328875681,1717939850589,-263.26,0.00025068,2]
[328875682,1717939850599,-696.95,0.00025205,2]
[328875683,1717939850609,-977.74190418,0.000253,2]
[328875684,1717939850620,-10930.21742229,0.00025304,2]
[328875685,1717939850630,-151.0,0.00025449,5]
[328875686,1717939850639,-300.0,0.000255,2]